Cogmind - Beta 14 @@@ ROGUE MODE // 2025.03.20 @ 19:39:45 Player: Wodorek Result: Self-destructed Performance ------------- Evolutions (1) 500 Regions Visited (4) 800 Robots Destroyed (20) 100 Value Destroyed (489) 489 Prototype IDs (0) 0 Alien Tech Used (0) 0 Bonus (319) 319 TOTAL SCORE: 2208 Bonus ------- High Alert Combat Kills 19 Aligned with FarCom 300 Cogmind --------- Core Integrity 299/400 Matter 226/300 Energy 265/265 System Corruption 0% Temperature Cool (0) Movement Hovering (52) Location -9/Exiles Parts ------- > --- POWER (1) -------- Reinforced Ion Engine > --- PROPULSION (3) --- Airjet Airjet Airjet > --- UTILITY (3) ------ Small Storage Unit Signal Interpreter Improved Propulsion Shielding > --- WEAPON (2) ------- Medium Laser Improved Light Cannon > --- INVENTORY (8) ---- Ion Engine Light Treads Light Treads Peak State ------------ > --- POWER ------------ Reinforced Ion Engine > --- PROPULSION ------- Airjet Airjet Airjet > --- UTILITY ---------- Small Storage Unit Signal Interpreter Improved Propulsion Shielding > --- WEAPON ----------- Medium Laser Improved Light Cannon > --- INVENTORY -------- Ion Engine Light Treads Light Treads [Rating: 19] Favorites ----------- Power Ion Engine Engine Ion Engine Propulsion Airjet Treads Light Treads Hover Unit Airjet Utility Small Storage Unit Device Shield Generator Storage Small Storage Unit Processor Signal Interpreter Protection Improved Propulsion Shielding Weapon Medium Laser Energy Gun Medium Laser Ballistic Cannon Improved Light Cannon Launcher Grenade Launcher Build | -11 -10 -9 -9 -9 ------- Run | Yrd Mat Mat Min Exi Slots Evolved 2 | . . 2 . . Power . | . . . . . Propulsion 1 | . . 1 . . Utility 1 | . . 1 . . Weapon . | . . . . . Parts Attached 16 | 6 2 6 2 . Power 2 | 1 . . 1 . Engine 2 | 1 . . 1 . Core . | . . . . . Reactor . | . . . . . Propulsion 5 | 2 . 3 . . Treads 2 | 2 . . . . Leg . | . . . . . Wheel . | . . . . . Hover 3 | . . 3 . . Flight . | . . . . . Utility 4 | 1 1 2 . . Device 1 | . . 1 . . Storage 1 | 1 . . . . Processor 1 | . 1 . . . Hackware . | . . . . . Protection 1 | . . 1 . . Artifact . | . . . . . Weapon 5 | 2 1 1 1 . Energy Gun 3 | 2 . . 1 . Energy Cannon . | . . . . . Ballistic Gun . | . . . . . Ballistic Cannon 1 | . . 1 . . Launcher 1 | . 1 . . . Special Weapon . | . . . . . Impact Weapon . | . . . . . Slashing Weapon . | . . . . . Piercing Weapon . | . . . . . Special Melee Weapon . | . . . . . Unidentified Prototypes . | . . . . . Parts Lost 2 | . . 2 . . Power . | . . . . . Propulsion . | . . . . . Utility 1 | . . 1 . . Weapon 1 | . . 1 . . Highest Loss Streak 1 | . . 1 . . To Critical Strikes . | . . . . . Average Slot Usage (%) 93 | . 93 85 100 100 Engine 11 | . 14 11 11 11 Treads 11 | . 28 15 . . Hover 17 | . . 9 33 33 Device 1 | . . 5 . . Storage 11 | . 14 11 11 11 Processor 10 | . 8 11 11 11 Protection 5 | . . 2 11 11 Energy Gun 10 | . 19 2 11 11 Ballistic Cannon 7 | . . 8 11 11 Launcher 4 | . 8 8 . . Peak Build Rating 19 | 6 7 18 19 19 Average Rating 12 | 5 6 11 18 19 On Entrance 9 | . 6 7 17 19 Naked Turns . | . . . . . Heaviest Build 23 | 14 15 19 23 23 Greatest Support 40 | 40 40 40 24 24 Greatest Overweight (x) 5 | . . 5 . . Average Overweight (x) . | . . . . . Largest Inventory Capacity 8 | 8 8 8 8 8 Average Capacity 7 | 7 8 8 8 8 Most Carried 5 | 5 1 3 3 3 Average Carried 1 | . . 1 2 3 Final Capacity 8 | 8 8 8 8 8 Final Carried 3 | . . 3 3 3 Class Distribution -------------------- 100% | Mutant Dominant Class ---------------- Mutant | -10/Materials Mutant | -9/Materials Mutant | -9/Mines Mutant | -9/Exiles Resources | -11 -10 -9 -9 -9 ----------- Run | Yrd Mat Mat Min Exi Matter Collected 550 | 260 8 128 154 . Remotely . | . . . . . Salvage Created 382 | 22 8 260 92 . Parts 28 | 3 4 18 3 . Haulers Intercepted . | . . . . . Recyclers Shooed 1 | . . 1 . . Parts Field Recycled . | . . . . . Retrieved Matter . | . . . . . Parts Self-Destructed . | . . . . . Prevented . | . . . . . Kills | -11 -10 -9 -9 -9 ------- Run | Yrd Mat Mat Min Exi Combat Hostiles Destroyed 16 | . 2 12 2 . Guns 1 | . . 1 . . Cannons 4 | . . 2 2 . AOE 11 | . 2 9 . . Classes Destroyed 6 | 1 1 3 1 . Worker 2 | . . 2 . . Tunneler 2 | 1 . . 1 . Swarmer 5 | . 2 3 . . Grunt 9 | . . 8 1 . Brawler 1 | . . . 1 . Sentry 1 | . . 1 . . Best Kill Streak 4 | 1 2 4 1 . Combat Bots Only 3 | . 2 3 1 . Max Kills in Single Turn 2 | 1 2 2 1 . Gunslinging . | . . . . . Exploded 2 | . 2 2 . . Melee . | . . . . . Uniques/NPCs Destroyed . | . . . . . Combat | -11 -10 -9 -9 -9 -------- Run | Yrd Mat Mat Min Exi Hostile Shots Fired 85 | . 4 77 4 . Missed 34 | . 1 32 1 . Damage Taken 567 | . 32 484 51 . Core 101 | . . 82 19 . Absorbed by Shields 115 | . . 115 . . Redirected to Shielding 42 | . . 35 7 . Core Remaining (%) 100 | 100 100 . . . Volleys Fired 39 | 4 1 23 9 2 Largest 2 | 2 2 2 2 2 Hottest 90 | 90 80 80 89 89 Shots Fired 71 | 8 2 39 18 4 Gun 27 | 8 1 7 9 2 Cannon 27 | . . 16 9 2 Launcher 17 | . 1 16 . . Special . | . . . . . Kinetic 27 | . . 16 9 2 Thermal 23 | 4 1 7 9 2 Explosive 17 | . 1 16 . . Electromagnetic 4 | 4 . . . . Robot Hit Streak 8 | 2 1 7 8 . Robot Miss Streak 5 | 5 1 2 4 . Penetration Max . | . . . . . Secondary Targets . | . . . . . Shots Hit Robots 32 | 3 1 17 11 . Core Hits 31 | 1 2 25 3 . Critical Kills . | . . . . . Critical Parts Destroyed . | . . . . . Critical Strikes 2 | . . 1 1 . Burn 1 | . . . 1 . Blast 1 | . . 1 . . Melee Attacks . | . . . . . Impact . | . . . . . Slashing . | . . . . . Piercing . | . . . . . Sneak Attacks . | . . . . . Combat Hostiles . | . . . . . Follow-up Attacks . | . . . . . Damage Inflicted 1342 | 49 67 1021 205 . Guns 187 | 49 . 76 62 . Cannons 228 | . . 106 122 . Explosions 906 | . 67 839 . . Melee . | . . . . . Ramming 21 | . . . 21 . Kinetic 228 | . . 106 122 . Thermal 150 | 12 . 76 62 . Explosive 906 | . 67 839 . . Electromagnetic 37 | 37 . . . . Impact . | . . . . . Slashing . | . . . . . Piercing . | . . . . . Highest Corruption . | . . . . . Average Corruption . | . . . . . Corruption Purged . | . . . . . Corruption Blocked . | . . . . . Overload Shots . | . . . . . Overflow Damage . | . . . . . Projectiles . | . . . . . Explosions . | . . . . . Melee . | . . . . . Knockbacks 1 | . . 1 . . Impact . | . . . . . Kinetic 1 | . . 1 . . Secondary . | . . . . . Self-Inflicted Damage 76 | . 13 53 10 . Shots 4 | . 1 3 . . Rammed 2 | . . . 2 . Targets Rammed 2 | . . . 2 . Kicked . | . . . . . Crushed . | . . . . . Highest Temperature 157 | 90 18 85 157 78 Average Temperature 41 | 41 12 27 62 39 Received Heat Transfer 222 | . . 210 12 . Siege Activations . | . . . . . Robots Corrupted . | . . . . . Combat Hostiles . | . . . . . Parts Fried . | . . . . . Impact Corruptions . | . . . . . Robots Melted . | . . . . . Combat Hostiles . | . . . . . Parts Melted . | . . . . . Heat Transferred 518 | 37 . 222 259 . Parts Sabotaged . | . . . . . Parts Stolen . | . . . . . Parts Stripped . | . . . . . Power Chain Reactions . | . . . . . Alert | -11 -10 -9 -9 -9 ------- Run | Yrd Mat Mat Min Exi Peak Influence 467 | 5 92 467 170 . Initial 115 | . 3 38 115 . Average 166 | 1 43 303 153 . Maximum Alert Level 2 | . . 2 . . Low Security (%) 68 | 100 100 22 100 . Level 1 15 | . . 39 . . Level 2 15 | . . 38 . . Level 3 . | . . . . . Level 4 . | . . . . . Level 5 . | . . . . . High Security . | . . . . . Max Security . | . . . . . Squads Dispatched 3 | . 1 2 . . Investigation . | . . . . . Extermination . | . . . . . Reinforcement 3 | . 1 2 . . Assault . | . . . . . Garrison . | . . . . . Intercept . | . . . . . Searches Triggered . | . . . . . Construction Impeded 1 | . . 1 . . Haulers Reinforced . | . . . . . Active Scanning Responses . | . . . . . Cargo Convoy Interrupts . | . . . . . Stealth | -11 -10 -9 -9 -9 --------- Run | Yrd Mat Mat Min Exi Distress Signals . | . . . . . Communications Jammed . | . . . . . Distress Signals . | . . . . . Times Spotted 28 | . 4 22 2 . Peak Tracking Total 8 | . 3 8 2 . Tactical Retreats 3 | . 1 2 . . Traps | -11 -10 -9 -9 -9 ------- Run | Yrd Mat Mat Min Exi Traps Triggered . | . . . . . Indirectly . | . . . . . Trap Hack Attempts . | . . . . . Triggered . | . . . . . Disarmed . | . . . . . Reprogrammed . | . . . . . Reused . | . . . . . Traps Extracted . | . . . . . Installed . | . . . . . Triggered . | . . . . . Machines | -11 -10 -9 -9 -9 ---------- Run | Yrd Mat Mat Min Exi Machines Disabled 1 | . . 1 . . Max in Single Turn 1 | . . 1 . . Machines Repaired . | . . . . . Machines Dismantled . | . . . . . Machines Sabotaged . | . . . . . Overloaded Fab Kills . | . . . . . Hacking | -11 -10 -9 -9 -9 --------- Run | Yrd Mat Mat Min Exi Machines Accessed 5 | . 2 . . 3 Terminals . | . . . . . Fabricators . | . . . . . Repair Stations 1 | . 1 . . . Recycling Units 1 | . 1 . . . Scanalyzers . | . . . . . Garrison Access . | . . . . . Total Hacks 9 | . 4 . . 5 Successful 8 | . 3 . . 5 Failed 1 | . 1 . . . Catastrophic . | . . . . . Database Lockouts . | . . . . . Manual 1 | . 1 . . . Terminals . | . . . . . Fabricators . | . . . . . Repair Stations 2 | . 2 . . . Recycling Units 2 | . 2 . . . Scanalyzers . | . . . . . Garrison Access . | . . . . . Terminal Hacks 5 | . . . . 5 Record 5 | . . . . 5 Fabricator Hacks . | . . . . . Repair Station Hacks 1 | . 1 . . . Scan Component 1 | . 1 . . . Recycling Unit Hacks 2 | . 2 . . . Process 1 | . 1 . . . Report Inventory 1 | . 1 . . . Scanalyzer . | . . . . . Garrison Access Hacks . | . . . . . Unauthorized Hacks . | . . . . . Terminals . | . . . . . Fabricators . | . . . . . Repair Stations . | . . . . . Recycling Units . | . . . . . Scanalyzers . | . . . . . Garrison Access . | . . . . . Data Cores Recovered . | . . . . . Used . | . . . . . Hacking Detections 2 | . 2 . . . Full Trace Events . | . . . . . Feedback Events . | . . . . . Feedback Blocked . | . . . . . Robot Schematics Acquired . | . . . . . Robots Built . | . . . . . Authchips . | . . . . . Time . | . . . . . Total Robot Build Rating . | . . . . . Part Schematics Acquired . | . . . . . Parts Built . | . . . . . Authchips . | . . . . . Time . | . . . . . Total Part Build Rating . | . . . . . Parts Repaired . | . . . . . Time . | . . . . . Parts Recycled . | . . . . . Recycled Matter . | . . . . . Retrieved Matter . | . . . . . Retrieved Components . | . . . . . Parts Scanalyzed . | . . . . . Part Schematics Acquired . | . . . . . Parts Damaged . | . . . . . Bothacking | -11 -10 -9 -9 -9 ------------ Run | Yrd Mat Mat Min Exi Used RIF Installer . | . . . . . Robots Hacked . | . . . . . Non-combat . | . . . . . Combat . | . . . . . Robot Hacks Applied . | . . . . . Relay Couplers Released . | . . . . . Fabnet Peak Effective % . | . . . . . Robots Rewired . | . . . . . Allies Hacked . | . . . . . Hacks Repelled . | . . . . . Allies | -11 -10 -9 -9 -9 -------- Run | Yrd Mat Mat Min Exi Total Allies . | . . . . . Largest Group . | . . . . . Highest-Rated Group . | . . . . . Highest-Rated Ally . | . . . . . Total Orders . | . . . . . Ally Attacks . | . . . . . Total Damage . | . . . . . Kills . | . . . . . Allies Corrupted . | . . . . . Allies Melted . | . . . . . Intel | -11 -10 -9 -9 -9 ------- Run | Yrd Mat Mat Min Exi Robot Analysis Total . | . . . . . Derelict Logs Recovered . | . . . . . Drone Launches . | . . . . . Drone Recoveries . | . . . . . Exploration | -11 -10 -9 -9 -9 ------------- Run | Yrd Mat Mat Min Exi Turns Passed 1345 | 128 265 409 206 337 Spaces Moved 1541 | 81 162 343 335 620 Core 24 | 22 . 2 . . Treads 361 | 59 162 140 . . Legs . | . . . . . Wheels . | . . . . . Hover 1156 | . . 201 335 620 Flight . | . . . . . Fastest Speed 50 | 50 160 52 52 52 Average Speed 77 | 130 160 98 52 52 Slowest Speed 300 | 160 160 300 52 52 Overloaded Moves . | . . . . . Propulsion Burnouts . | . . . . . Robots Hopped . | . . . . . Cave-ins Triggered . | . . . . . Exploration Rate (%) 38 | 5 23 28 53 83 Regions Visited 4 Branch Regions 2 Pre-discovered Areas 1 | . . . . 1 Known Exits Taken 3 | . 1 1 1 . Unknown Exits Taken 1 | 1 . . . . Scrap Searched . | . . . . . Spaces Dug . | . . . . . Terrain Destroyed 75 | . 8 67 . . Melee . | . . . . . Projectile 2 | . . 2 . . AOE 73 | . 8 65 . . Terrain Rammed . | . . . . . Walls Destroyed . | . . . . . Machines Disabled . | . . . . . Actions | -11 -10 -9 -9 -9 --------- Run | Yrd Mat Mat Min Exi Total 1613 | 96 165 375 347 630 Wait . | . . . . . Move 1537 | 80 161 342 334 620 Hop . | . . . . . Pick Up 8 | 6 1 1 . . Fast Attach 5 | . . 5 . . Attach 9 | 6 1 1 1 . Detach 3 | . . 3 . . Swap 2 | . 1 . 1 . Drop . | . . . . . Fire 39 | 4 1 23 9 2 Melee . | . . . . . Ram 2 | . . . 2 . Kick . | . . . . . Crush . | . . . . . Escape Stasis . | . . . . . Rewire 8 | . . . . 8 Trap . | . . . . . Miscellaneous . | . . . . . Route ------- -11/Scrapyard -10/Materials -9/Materials -9/Mines (discovered 2 exits: *Mat / *Exi) -9/Exiles (discovered 1 exit: [*Min]) History --------- Turn | Location | Event 6 | -11/Scrapyard | Discovered new exit (range 15) 129 | -11/Scrapyard | Entered Materials 314 | -10/Materials | Build established: Mutant 317 | -10/Materials | Discovered new exit (range 3) 390 | -10/Materials | Identified exit to Materials 394 | -10/Materials | Entered another Materials area 394 | -9/Materials | Evolved 2 slots: Propulsion x1, Utility x1 795 | -9/Materials | Discovered new exit (range 13) 800 | -9/Materials | Identified exit to Mines 803 | -9/Materials | Entered Mines 989 | -9/Mines | Discovered new exit (range 6) 993 | -9/Mines | Identified exit to Materials 1002 | -9/Mines | Deemed a non-threat by the Exiles lab entrance 1002 | -9/Mines | Discovered new exit (range 5) 1005 | -9/Mines | Identified exit to Exiles 1009 | -9/Mines | Entered Exiles 1031 | -9/Exiles | Discovered new exit (range 15) 1039 | -9/Exiles | Met 8R-AWN 1058 | -9/Exiles | Met EX-HEX 1106 | -9/Exiles | Met EX-DEC 1142 | -9/Exiles | Learned location of Zion (-7) 1163 | -9/Exiles | Met EX-BIN 1174 | -9/Exiles | Aligned with FarCom system 1174 | -9/Exiles | Given EX-Vault access code 1320 | -9/Exiles | Visited The Gauntlet 1346 | -9/Exiles | Self-destructed Last Messages --------------- >>Record! "HEX-102/Cloak of Protection" DEC: Armor with built-in cloaking technology. Or a big fat cloaking device that doubles as protection for when simply being cloaked isn't good enough. Same thing. Impressive, wish I'd thought of it. Attempting to rewire as-67920. as-67920 cannot be rewired. Attempting to rewire as-06717. as-06717 cannot be rewired. Attempting to rewire A-02 Transporter. A-02 Transporter is unpowered. Attempting to rewire A-02 Transporter. A-02 Transporter is unpowered. J5-HVA: Are you here to join us? Sorry but we don't have any workstations ready for assignment just yet. We're probably going to have to pack up and move anyway, seeing as the Mines are expanding a bit too close for comfort. Map ----- +----------------------------------------------------+ | ??????????????????????????????????????????##"" | | ???????????????????????????????????????????#"""" | | ???????????????????????????????????????????## | | ????????????????????????????????????????????#" | | ????????????????????????????????????????????#"""" | | ????????????????????????????????????????????#"" | | ????????????????????????????????????????????#" | | ????????????????????????????????????????????#""" | | ????????????????????????????????????????????## | | ?????????????????????????????????????????????#"" | | ?????????????????????????????????????????????##""" | | ??????????????????????????????????????????????##"" | | ???????????????????????????????????????????????### | | ?????????????????????????????????????????????????# | | ?????????????????????????????????????????????????? | | ?????????????????????????????????????????????????? | | ?????????????????????????????????????????????????? | | ?????????????????????????????????????????????????? | | ??????????????????????########???????????????###?? | | ?????????????????????#"""""""#?????"""""???#"""""? | | ?????????????????????#"" ""#???"""""""????"""""" | | ?????????????????????#" "#??"""""" "#??#" """ | | ?????????????????????#"" ""#""#""" """????"" "" | | ??????????????????????"" ""#""#"" ""????"" " | | ????????????????########"""###""###"""########"""# | | ????????????????#"""" "" @ """"""" """""""" " | | ????????????????#" """""" """"""" | | ????????????????#""" | | ????????????????#"""" | | ????????????????#"" | | ????????????????#""" z"" | | ????????????????#"" """ """""" " """"" " | | ????????????????########"""########"""###""###"""# | | ??????????????????????"" "?????"" ""#""#"" " | | ??????????????????????""" """????""" ""#""#""" " | | ?????????????????????#" """ "???#" """"""""#" " | | ??????????????????????"""""""????"""""""????"""""" | | ??????????????????????"""""""????""""""?????"""""" | | ??????????????????????????????????????????????##?# | | ?????????????????????????????????????????????????? | | ?????????????????????????????????????????????????? | | ?????????????????????????????????????????????????? | | ?????????????????????????????????????????????????? | | | | | | | | | | | | | | | +----------------------------------------------------+ Best States ------------- Heat Dissipation 28 Energy Generation 12 Energy Capacity 265 Matter Stores 300 Matter Capacity 300 Sight Range 16 Terrain Scan Density 10 Propulsion Shielding 66 Evasion (%) 54 Recoil Reduction 2 Item Schematics ----------------- None Robot Schematics ------------------ None Fabricated ------------ Nothing Alien Tech Used ----------------- None Achievements -------------- Storm Trooper Challenges ------------ None Game ------ Seed MultitargetingStormAutobeam Manual? 0 Play Time 00:17:15 Cumulative 0.5 hours Start 2025.03.20 @ 17:55:24 End 2025.03.20 @ 19:39:45 Sessions 2 Manual Loads 0 Difficulty Rogue Special Mode None Game No. 3 Rogue 3 Adventurer 0 Explorer 0 Win Type - Total 0 Types 0/0/0/0/0/0/0/0/0 Lore% 1 Gallery% 2 Achievement% 1 Wizard Run 0 Options --------- Layout 1 ASCII 0 Keyboard 0 Movement Arrows Keybinds 0 Fullscreen 1 Font 24/Smallcaps Map View 50x35 Zoom Use 0% Tactical HUD 0 Map Filters NONE Filters NONE Steam 1 RUN: 6b5545d7-c4ee-479a-baea-ceec166b2923